Cogmind - Beta 10 @@@ ROGUE MODE // 2020.09.19 @ 21:00:42 Player: Pimski Result: Self-destructed Performance ------------- Evolutions (0) 0 Regions Visited (4) 800 Robots Destroyed (32) 160 Value Destroyed (434) 434 Prototype IDs (25) 500 Alien Tech Used (0) 0 Bonus (342) 342 TOTAL SCORE: 2236 Bonus ------- Follower Combat Kills 42 Aligned with FarCom 300 Cogmind --------- Core Integrity 53/250 Matter 207/300 Energy 100/100 System Corruption 0% Temperature Cool (0) Movement Treading (180) Ox1 Location -9/Mines Parts ------- > --- POWER (1) -------- (None) > --- PROPULSION (2) --- Light Treads > --- UTILITY (2) ------ Large Storage Unit Large Storage Unit > --- WEAPON (2) ------- Light Assault Rifle Light Assault Rifle > --- INVENTORY (16) --- Compact Wheel Medium Storage Unit Large Storage Unit Large Storage Unit Large Storage Unit 0b10 Alert Chip Targeting Computer PSU Rigger Light Assault Rifle Light Assault Rifle Light Assault Rifle Mining Claw Peak State ------------ > --- POWER ------------ (None) > --- PROPULSION ------- Light Treads Light Treads > --- UTILITY ---------- Large Storage Unit Large Storage Unit > --- WEAPON ----------- Small Laser Mining Claw > --- INVENTORY -------- Reinforced Deuterium Engine Compact Wheel Compact Wheel Medium Storage Unit Large Storage Unit Large Storage Unit Large Storage Unit 0b10 Alert Chip Targeting Computer PSU Rigger Assault Rifle Light Assault Rifle Light Assault Rifle Light Assault Rifle Light Assault Rifle Grenade Launcher [Rating: 9] Favorites ----------- Power Light Ion Engine Engine Light Ion Engine Propulsion Light Treads Treads Light Treads Leg Aluminum Leg Wheel Compact Wheel Utility Large Storage Unit Storage Large Storage Unit Weapon Small Laser Energy Gun Small Laser Ballistic Gun Light Assault Rifle Ballistic Cannon Light Cannon Launcher Grenade Launcher Slashing Weapon Mining Claw Build | -11 -10 -10 -10 -9 ------- Run | Scr Mat Min Exi Min Slots Evolved . | . . . . . Power . | . . . . . Propulsion . | . . . . . Utility . | . . . . . Weapon . | . . . . . Parts Attached 28 | . 11 8 3 6 Power . | . . . . . Engine . | . . . . . Core . | . . . . . Reactor . | . . . . . Propulsion 8 | . 2 1 2 3 Treads 5 | . 2 1 . 2 Leg . | . . . . . Wheel 3 | . . . 2 1 Hover . | . . . . . Flight . | . . . . . Utility 3 | . 3 . . . Device . | . . . . . Storage 3 | . 3 . . . Processor . | . . . . . Hackware . | . . . . . Protection . | . . . . . Artifact . | . . . . . Weapon 17 | . 6 7 1 3 Energy Gun 6 | . 3 3 . . Energy Cannon . | . . . . . Ballistic Gun 6 | . 2 1 . 3 Ballistic Cannon 1 | . 1 . . . Launcher 1 | . . . 1 . Special Weapon . | . . . . . Impact Weapon . | . . . . . Slashing Weapon 3 | . . 3 . . Piercing Weapon . | . . . . . Special Melee Weapon . | . . . . . Unidentified Prototypes . | . . . . . Parts Lost 12 | . 3 4 . 5 Power 1 | . . 1 . . Propulsion 3 | . . 1 . 2 Utility . | . . . . . Weapon 8 | . 3 2 . 3 Highest Loss Streak 4 | . 1 2 . 4 Average Slot Usage (%) 91 | . 98 97 85 66 Engine 8 | . 14 11 . . Treads 24 | . 25 28 26 11 Leg 1 | . 2 . . . Storage 27 | . 26 28 28 28 Energy Gun 13 | . 15 12 14 . Ballistic Gun 10 | . 11 13 . 22 Slashing Weapon 3 | . . 1 13 . Naked Turns . | . . . . . Heaviest Build 39 | 10 39 38 36 36 Greatest Support 40 | 20 40 20 32 20 Greatest Overweight (x) 2 | . 1 1 1 2 Average Overweight (x) . | . . 1 1 1 Largest Inventory Capacity 16 | 6 16 16 16 16 Average Capacity 15 | 6 15 16 16 16 Most Carried 16 | 6 16 16 16 15 Average Carried 13 | 6 12 15 13 12 Final Capacity 16 | 6 16 16 16 16 Final Carried 16 | 6 16 13 15 12 Class Distribution -------------------- 100% | Mutant Dominant Class ---------------- Mutant | -10/Materials Mutant | -10/Mines Mutant | -10/Exiles Mutant | -9/Mines Resources | -11 -10 -10 -10 -9 ----------- Run | Scr Mat Min Exi Min Matter Collected 530 | 200 220 41 27 42 Remotely . | . . . . . Salvage Created 1005 | 96 783 39 . 87 Parts 48 | 1 40 . . 7 Haulers Intercepted 2 | . 2 . . . Recyclers Shooed 1 | . . . . 1 Parts Field Recycled . | . . . . . Retrieved Matter . | . . . . . Parts Self-Destructed . | . . . . . Prevented . | . . . . . Kills | -11 -10 -10 -10 -9 ------- Run | Scr Mat Min Exi Min Combat Hostiles Destroyed 23 | . 12 2 . 9 Guns 17 | . 11 2 . 4 Cannons 1 | . 1 . . . AOE 5 | . . . . 5 Classes Destroyed 8 | 1 5 1 . 1 Worker 1 | . 1 . . . Hauler 2 | . 2 . . . Recycler 4 | 1 3 . . . Watcher 2 | . 2 . . . Swarmer 9 | . 6 . . 3 Grunt 6 | . 6 . . . Demolisher 1 | . . . . 1 Assembled 7 | . . 2 . 5 Best Kill Streak 5 | 1 5 1 . 5 Combat Bots Only 5 | . 3 1 . 5 Max Kills in Single Turn 3 | 1 1 1 . 3 Gunslinging . | . . . . . Exploded 3 | . . . . 3 Melee . | . . . . . Uniques/NPCs Destroyed . | . . . . . Combat | -11 -10 -10 -10 -9 -------- Run | Scr Mat Min Exi Min Damage Taken 1418 | . 543 133 . 742 Core 197 | . 50 . . 147 Absorbed by Shields . | . . . . . Core Remaining (%) 100 | 100 . . . . Volleys Fired 90 | 4 66 6 1 13 Largest 2 | 2 2 2 1 2 Hottest 80 | 80 80 60 30 40 Shots Fired 167 | 7 125 12 1 22 Gun 159 | 7 122 12 . 18 Cannon 3 | . 3 . . . Launcher 5 | . . . 1 4 Special . | . . . . . Kinetic 82 | . 58 6 . 18 Thermal 49 | 3 40 6 . . Explosive 5 | . . . 1 4 Electromagnetic 31 | 4 27 . . . Robot Hit Streak 13 | 7 11 13 . 3 Robot Miss Streak 5 | . 5 1 . 3 Penetration Max . | . . . . . Secondary Targets 2 | . 1 . . 1 Max Gunslinging Chain 1 | . 1 . . 1 Shots Hit Robots 108 | 7 80 10 . 11 Core Hits 66 | 2 38 5 . 21 Critical Hits 1 | . . . . 1 Critical Kills 1 | . . . . 1 Critical Parts Destroyed . | . . . . . Melee Attacks 9 | . . 9 . . Impact . | . . . . . Slashing 9 | . . 9 . . Piercing . | . . . . . Sneak Attacks . | . . . . . Combat Hostiles . | . . . . . Follow-up Attacks . | . . . . . Damage Inflicted 1757 | 84 1022 119 . 532 Guns 1223 | 84 973 89 . 77 Cannons 49 | . 49 . . . Explosions 455 | . . . . 455 Melee 30 | . . 30 . . Ramming . | . . . . . Kinetic 518 | . 399 42 . 77 Thermal 465 | 33 385 47 . . Explosive 455 | . . . . 455 Electromagnetic 289 | 51 238 . . . Impact . | . . . . . Slashing 30 | . . 30 . . Piercing . | . . . . . Highest Corruption . | . . . . . Average Corruption . | . . . . . Corruption Purged . | . . . . . Overload Shots . | . . . . . Overflow Damage 17 | . . . . 17 Projectiles . | . . . . . Explosions 17 | . . . . 17 Melee . | . . . . . Knockbacks 1 | . 1 . . . Impact . | . . . . . Kinetic 1 | . 1 . . . Secondary . | . . . . . Self-Inflicted Damage . | . . . . . Shots . | . . . . . Rammed 2 | . 2 . . . Targets Rammed 2 | . 2 . . . Kicked . | . . . . . Crushed . | . . . . . Highest Temperature 240 | 38 240 35 . 10 Average Temperature 56 | 21 63 17 . 10 Received Heat Transfer 352 | . 252 80 . 20 Effects 1 | . 1 . . . Energy Bleed 1 | . 1 . . . Siege Activations . | . . . . . Robots Corrupted . | . . . . . Combat Hostiles . | . . . . . Parts Fried 2 | . 2 . . . Impact Corruptions . | . . . . . Robots Melted . | . . . . . Combat Hostiles . | . . . . . Parts Melted 1 | . 1 . . . Heat Transferred 1096 | 75 921 100 . . Parts Sabotaged . | . . . . . Parts Stolen . | . . . . . Parts Stripped . | . . . . . Power Chain Reactions . | . . . . . Missiles Intercepted . | . . . . . Alert | -11 -10 -10 -10 -9 ------- Run | Scr Mat Min Exi Min Peak Influence 137 | 5 130 137 . 90 Initial 7 | . 3 7 . . Average 67 | 1 68 89 . 35 Maximum Alert Level . | . . . . . Low Security (%) 100 | 100 100 100 . 100 Level 1 . | . . . . . Level 2 . | . . . . . Level 3 . | . . . . . Level 4 . | . . . . . Level 5 . | . . . . . High Security . | . . . . . Max Security . | . . . . . Squads Dispatched 2 | . 2 . . . Investigation 2 | . 2 . . . Extermination . | . . . . . Reinforcement . | . . . . . Assault . | . . . . . Garrison . | . . . . . Intercept . | . . . . . Construction Impeded . | . . . . . Haulers Reinforced . | . . . . . Stealth | -11 -10 -10 -10 -9 --------- Run | Scr Mat Min Exi Min Distress Signals . | . . . . . Communications Jammed . | . . . . . Distress Signals . | . . . . . Times Spotted 54 | . 22 7 5 20 Peak Tracking Total 11 | . 3 3 9 11 Tactical Retreats 7 | . 3 1 . 3 Traps | -11 -10 -10 -10 -9 ------- Run | Scr Mat Min Exi Min Traps Triggered 1 | . 1 . . . Indirectly . | . . . . . Trap Hack Attempts . | . . . . . Triggered . | . . . . . Disarmed . | . . . . . Reprogrammed . | . . . . . Reused . | . . . . . Traps Extracted . | . . . . . Installed . | . . . . . Triggered 1 | . . . . 1 Machines | -11 -10 -10 -10 -9 ---------- Run | Scr Mat Min Exi Min Machines Disabled 1 | . . . 1 . Max in Single Turn 1 | . . . 1 . Machines Sabotaged . | . . . . . Garrisons Compromised . | . . . . . Overloaded Fab Kills . | . . . . . Fab Network Shutdowns . | . . . . . Hacking | -11 -10 -10 -10 -9 --------- Run | Scr Mat Min Exi Min Machines Accessed 16 | . 11 . 5 . Terminals 8 | . 8 . . . Fabricators . | . . . . . Repair Stations 1 | . 1 . . . Recycling Units 2 | . 2 . . . Scanalyzers . | . . . . . Garrison Access . | . . . . . Total Hacks 57 | . 31 . 26 . Successful 40 | . 14 . 26 . Failed 16 | . 16 . . . Catastrophic . | . . . . . Database Lockouts 1 | . 1 . . . Manual 16 | . 15 . 1 . Terminals 24 | . 24 . . . Fabricators . | . . . . . Repair Stations 3 | . 3 . . . Recycling Units 4 | . 4 . . . Scanalyzers . | . . . . . Garrison Access . | . . . . . Terminal Hacks 36 | . 10 . 26 . Record 25 | . . . 25 . Robot Analysis 2 | . 2 . . . Prototype ID Bank 1 | . 1 . . . Emergency Access Points 1 | . 1 . . . Unreport Threat 1 | . 1 . . . Locate Traps 4 | . 4 . . . Hauler Manifests 1 | . 1 . . . EX-Prototype ID Bank 1 | . . . 1 . Fabricator Hacks . | . . . . . Repair Station Hacks 1 | . 1 . . . Scan Component 1 | . 1 . . . Recycling Unit Hacks 1 | . 1 . . . Retrieve Components 1 | . 1 . . . Scanalyzer . | . . . . . Garrison Access Hacks . | . . . . . Unauthorized Hacks 2 | . 2 . . . Terminals 2 | . 2 . . . Botnet 2 | . 2 . . . Fabricators . | . . . . . Repair Stations . | . . . . . Recycling Units . | . . . . . Scanalyzers . | . . . . . Garrison Access . | . . . . . Data Cores Recovered . | . . . . . Used . | . . . . . Hacking Detections 11 | . 11 . . . Full Trace Events 1 | . 1 . . . Feedback Events . | . . . . . Feedback Blocked . | . . . . . Robot Schematics Acquired . | . . . . . Robots Built . | . . . . . Matter . | . . . . . Time . | . . . . . Total Robot Build Rating . | . . . . . Part Schematics Acquired . | . . . . . Parts Built . | . . . . . Matter . | . . . . . Time . | . . . . . Total Part Build Rating . | . . . . . Parts Repaired . | . . . . . Time . | . . . . . Parts Recycled . | . . . . . Recycled Matter . | . . . . . Retrieved Matter . | . . . . . Retrieved Components 1 | . 1 . . . Parts Scanalyzed . | . . . . . Part Schematics Acquired . | . . . . . Parts Damaged . | . . . . . Bothacking | -11 -10 -10 -10 -9 ------------ Run | Scr Mat Min Exi Min Used RIF Installer . | . . . . . Robots Hacked . | . . . . . Non-combat . | . . . . . Combat . | . . . . . Robot Hacks Applied . | . . . . . Relay Couplers Released . | . . . . . Robots Rewired . | . . . . . Allies Hacked . | . . . . . Hacks Repelled . | . . . . . Allies | -11 -10 -10 -10 -9 -------- Run | Scr Mat Min Exi Min Total Allies 3 | . . 3 . . Largest Group 3 | . . 3 . . Highest-Rated Group 40 | . . 40 . . Highest-Rated Ally 16 | . . 16 . . Total Orders . | . . . . . Ally Attacks 19 | . . 19 . . Total Damage 153 | . . 153 . . Kills 6 | . . 6 . . Allies Corrupted . | . . . . . Allies Melted . | . . . . . Intel | -11 -10 -10 -10 -9 ------- Run | Scr Mat Min Exi Min Robot Analysis Total 2 | . 2 . . . Derelict Logs Recovered 1 | . . 1 . . Drone Launches . | . . . . . Drone Recoveries . | . . . . . Exploration | -11 -10 -10 -10 -9 ------------- Run | Scr Mat Min Exi Min Turns Passed 2775 | 14 1354 410 713 284 Spaces Moved 1411 | 3 676 182 397 153 Core . | . . . . . Treads 1253 | . 586 182 379 106 Legs 93 | 3 90 . . . Wheels 65 | . . . 18 47 Hover . | . . . . . Flight . | . . . . . Fastest Speed 110 | 120 120 180 110 110 Average Speed 166 | 120 158 180 176 158 Slowest Speed 180 | 120 180 180 180 180 Overloaded Moves . | . . . . . Propulsion Burnouts . | . . . . . Robots Hopped . | . . . . . Cave-ins Triggered . | . . . . . Exploration Rate (%) 52 | 1 99 41 68 55 Regions Visited 4 Branch Regions 3 Pre-discovered Areas 1 | . . . 1 . Known Exits Taken . | . . . . . Unknown Exits Taken 4 | 1 1 1 1 . Scrap Searched . | . . . . . Spaces Dug 1 | . . 1 . . Terrain Destroyed 31 | . . 1 7 23 Melee 1 | . . 1 . . Projectile . | . . . . . AOE 30 | . . . 7 23 Terrain Rammed . | . . . . . Walls Destroyed . | . . . . . Machines Disabled . | . . . . . Actions | -11 -10 -10 -10 -9 --------- Run | Scr Mat Min Exi Min Total 1656 | 6 835 235 406 174 Wait 79 | . 53 25 . 1 Move 1407 | 2 675 181 396 153 Hop . | . . . . . Pick Up 27 | . 19 3 4 1 Fast Attach 2 | . 2 . . . Attach 9 | . 2 3 . 4 Detach . | . . . . . Swap 17 | . 7 5 3 2 Drop 14 | . 9 3 2 . Fire 90 | 4 66 6 1 13 Melee 9 | . . 9 . . Ram . | . . . . . Kick . | . . . . . Crush 2 | . 2 . . . Escape Stasis . | . . . . . Rewire . | . . . . . Trap . | . . . . . Miscellaneous . | . . . . . Route ------- -11/Scrapyard -10/Materials (discovered 4 exits: [*Mat x3] / [*Min]) -10/Mines -10/Exiles -9/Mines (discovered 2 exits: [*Mat x2]) History --------- Turn | Location | Event 12 | -11/Scrapyard | Discovered new exit (range 1) 15 | -11/Scrapyard | Entered Materials 293 | -10/Materials | Discovered new exit (range 7) 317 | -10/Materials | Build established: Mutant 333 | -10/Materials | Central database locked down 486 | -10/Materials | Discovered new exit (range 3) 721 | -10/Materials | Discovered new exit (range 16) 1033 | -10/Materials | Discovered new exit (range 13) 1369 | -10/Materials | Entered Mines 1373 | -10/Mines | Assisted by bots powering up and referring to "LRC-V3" 1684 | -10/Mines | Deemed a non-threat by the Exiles lab entrance 1684 | -10/Mines | Discovered new exit (range 5) 1698 | -10/Mines | Excavation squad dispatched 1698 | -10/Mines | A large section of the Mines collapsed 1779 | -10/Mines | Entered Exiles 1823 | -10/Exiles | Met 8R-AWN 1853 | -10/Exiles | Met EX-HEX 1947 | -10/Exiles | Met EX-DEC 1976 | -10/Exiles | Learned location of Zion (-6) 2102 | -10/Exiles | Met EX-BIN 2123 | -10/Exiles | Aligned with FarCom system 2125 | -10/Exiles | Given EX-Vault access code 2166 | -10/Exiles | Opened EX-Vault 2175 | -10/Exiles | Found 0b10 Alert Chip 2180 | -10/Exiles | Found PSU Rigger 2222 | -10/Exiles | Warned to stay clear of 0b10 Research branches 2475 | -10/Exiles | Attacked by the Exiles 2480 | -10/Exiles | Discovered new exit (range 14) 2492 | -10/Exiles | Stole two prototypes: 0b10 Alert Chip, PSU Rigger 2492 | -10/Exiles | Entered Mines 2493 | -9/Mines | Assembled infested the area 2518 | -9/Mines | Core integrity fell below 50% 2542 | -9/Mines | Lost 4 parts (2n2w) 2729 | -9/Mines | Discovered new exit (range 12) 2755 | -9/Mines | Discovered new exit (range 6) 2776 | -9/Mines | Self-destructed Last Messages --------------- operations..." 02730_ ZD-Q8G(g) slips into the shadows. 02730_ K-01 Serf collects debris. 02731_ U-05 Engineer lays Concrete. 02733_ U-05 Engineer builds a Wall. 02733_ K-01 Serf collects debris. 02737_ U-05 Engineer builds a Wall. 02738_ K-01 Serf collects debris. 02741_ U-05 Engineer lays Concrete. 02742_ K-01 Serf collects debris. 02743_ U-05 Engineer lays Concrete. 02744_ U-05 Engineer builds a Wall. 02744_ K-01 Serf collects debris. 02745_ S-10 Pest destroyed. 02750_ U-05 Engineer lays Concrete. 02753_ K-01 Serf collects debris. 02753_ U-05 Engineer lays Concrete. 02755_ Acquired 13 matter. 02755_ EXIT=FOUND 02756_ U-05 Engineer lays Concrete. Map ----- +----------------------------------------------------+ | ??????????????????????????????????# | | ?????????????????????????????????## | | ????????????????????????????????## # # | | ????????????????????????????????# ????? | | ????????????????????????????????# ????? | | ????????????????????????????????# #????? | | ?????????????????????????## ##### #????? | | ?????????????????????????# " ##???? | | ?????????????????????????# "%" ##??? | | ?????????????????????????# ##### ##??? | | ????????????????????????????????# # #??? | | ????????????????????????????????## #### ##??? | | ?????????????????????????????????###???# ##??? | | ?????????????????????????????????????### ##?? | | ???########????????????????????##???## #?? | | ?###"""#""####??????????#?????? ???# #?? | | ?#" "#?????????#$??????# ???# ##?? | | ?#" "#?????????# #?????# ??## ##?? | | ?#" "##????????# #?????# ### ### | | ?#" ##???????# #????## # # | | ?# ##??????# #????# ## | | ?#" ####???# #????# | | ?# # #???# #????## | | ?## #?### ####?## # """ | | ?#" # ###k #?# """ | | ??#""" =*# u@ #?# #= # "" | | ??#### "## #%= ### < #?# "" | | ?????# #### ## " # #?## | | ?????# #??# " # #??# ## | | ?????# #??# "## """ #??# #### | | ?????# #??##### ### """ #??# ### | | ?????# #??????# < "#?# """ #??# ## | | ?????# #??????# ##?# #?# ### | | ??#### ####???# #??# ## #?## | | ??# #???# #??# ## #??# ##### | | ??# """ #???# ##??# ## ##?## ##???? | | ??# """ ##### #???######### ##??# ##???? | | ??# """ #???????????#####???# ###?? | | ??# #???????????????????## ##? | | ??# ########????????????????????## ## | | ??# #????????????????????????????## # | | ??# #????????????????####?????????# # | | ??####### #???????????????## ##???????## ## | | ????????# #???????????##### #???????# #? | | ????????#=#??????????## ######### ## | | ????????# ##?????????# """ ### ## | | ???????## ########### """ ## | | ??????## """ #### | | ??????# ## ##??? | | ??????# ########## ########### ##???? | +----------------------------------------------------+ Best States ------------- Heat Dissipation 25 Energy Generation 10 Energy Capacity 125 Matter Stores 300 Matter Capacity 300 Sight Range 16 Terrain Scan Density 10 Evasion (%) 40 Recoil Reduction 2 Item Schematics ----------------- None Robot Schematics ------------------ None Fabricated ------------ Nothing Alien Tech Used ----------------- None Achievements -------------- None Challenges ------------ None Game ------ Seed ExperimentalComponentRail Manual? 0 Play Time 00:25:40 Cumulative 735.7 hours Start 2020.09.19 @ 20:36:42 End 2020.09.19 @ 21:00:42 Sessions 1 Manual Loads 0 Difficulty Rogue Special Mode None Game No. 474 Rogue 474 Adventurer 0 Explorer 0 Win Type - Total 110 Types 75/7/8/10/5/1/4/0/0 Lore% 96 Gallery% 94 Achievement% 81 Wizard Run 0 Options --------- ASCII 0 Keyboard 0 Movement Numpad Keybinds 0 Fullscreen 2 Font 18/SmallcapsGlow Map View 76x50 Tactical HUD 1 Map Filters NONE Filters NONE Steam 1 RUN: 9ea377b6-7b24-475b-bc02-ebfdec50df9c